Cogmind - Beta 15 @@@ ROGUE MODE // 2025.08.30 @ 17:05:39 Player: shapeshifter Result: Destroyed by 8R-AWN with 8R-AWN's Boregun Performance ------------- Evolutions (1) 500 Regions Visited (5) 1000 Robots Destroyed (22) 110 Value Destroyed (457) 457 Prototype IDs (23) 460 Alien Tech Used (0) 0 Bonus (300) 300 TOTAL SCORE: 2827 Bonus ------- Aligned with FarCom 300 Cogmind --------- Core Integrity 0/400 Matter 210/300 Energy 100/100 System Corruption 3% Temperature Cool (0) Movement Core (50) Location -9/Exiles Parts ------- > --- POWER (1) -------- (None) > --- PROPULSION (2) --- (None) > --- UTILITY (3) ------ Salvage Targeting Computer Salvage Targeting Computer > --- WEAPON (3) ------- (None) > --- INVENTORY (5) ---- Salvage Targeting Computer Cloak of Protection Shock Rifle Peak State ------------ > --- POWER ------------ Improved Ion Engine > --- PROPULSION ------- Light Treads Light Treads > --- UTILITY ---------- High-capacity Storage Unit Salvage Targeting Computer Reflective Plating > --- WEAPON ----------- Shock Rifle Light Assault Rifle Light Assault Rifle > --- INVENTORY -------- Improved Ion Engine Nuclear Core Reinforced Deuterium Engine Fission Core Light Treads Light Treads Salvage Targeting Computer Salvage Targeting Computer Salvage Targeting Computer Cloak of Protection Reflective Plating Reflective Plating Reflective Plating Shock Rifle Assault Rifle Assault Rifle Light Assault Rifle Light Assault Rifle Light Assault Rifle Rocket Launcher [Rating: 19] Favorites ----------- Power Improved Ion Engine Engine Improved Ion Engine Propulsion Light Treads Treads Light Treads Wheel Wheel Utility High-capacity Storage Unit Device Seismic Detector Storage High-capacity Storage Unit Processor Salvage Targeting Computer Protection Reflective Plating Weapon Light Assault Rifle Energy Gun Medium Laser Ballistic Gun Light Assault Rifle Launcher Rocket Launcher Build | -11 -10 -10 -9 -9 -9 ------- Run | Yrd Mat Min Mat Min Exi Slots Evolved 2 | . . . 2 . . Power . | . . . . . . Propulsion . | . . . . . . Utility 1 | . . . 1 . . Weapon 1 | . . . 1 . . Parts Attached 34 | 7 4 1 7 . 15 Power 4 | 1 . . 2 . 1 Engine 4 | 1 . . 2 . 1 Core . | . . . . . . Reactor . | . . . . . . Propulsion 8 | 2 1 1 2 . 2 Treads 6 | 2 . . 2 . 2 Leg . | . . . . . . Wheel 2 | . 1 1 . . . Hover . | . . . . . . Flight . | . . . . . . Utility 10 | 2 1 . 2 . 5 Device 2 | 1 . . . . 1 Storage 2 | 1 1 . . . . Processor 2 | . . . 1 . 1 Hackware . | . . . . . . Protection 4 | . . . 1 . 3 Artifact . | . . . . . . Weapon 12 | 2 2 . 1 . 7 Energy Gun 3 | 1 . . . . 2 Energy Cannon . | . . . . . . Ballistic Gun 8 | 1 2 . 1 . 4 Ballistic Cannon . | . . . . . . Launcher 1 | . . . . . 1 Special Weapon . | . . . . . . Impact Weapon . | . . . . . . Slashing Weapon . | . . . . . . Piercing Weapon . | . . . . . . Special Melee Weapon . | . . . . . . Unidentified Prototypes . | . . . . . . Parts Lost 21 | . 2 . . . 19 Power 2 | . . . . . 2 Propulsion 5 | . 1 . . . 4 Utility 4 | . . . . . 4 Weapon 10 | . 1 . . . 9 Highest Loss Streak 7 | . 1 . . . 7 To Critical Strikes 6 | . . . . . 6 Average Backups 15 | 3 11 14 18 20 17 Power 1 | . 1 1 . 1 1 Propulsion 1 | 1 1 1 2 2 1 Utility 6 | . 5 6 7 8 6 Weapon 5 | . 2 5 6 8 6 Tool/Special . | . . . . . . Unused Backups 12 | . . . 3 . 9 Power 3 | . . . . . 3 Propulsion . | . . . . . . Utility 6 | . . . 2 . 4 Weapon 2 | . . . 1 . 1 Tool/Special 1 | . . . . . 1 Average Slot Usage (%) 96 | . 99 100 93 100 94 Engine 11 | . 14 14 11 11 10 Treads 19 | . 26 2 10 22 20 Wheel 3 | . 1 25 11 . . Device 5 | . 14 14 5 . . Storage 11 | . 14 14 11 11 10 Processor 6 | . . . 5 11 11 Protection 6 | . . . 5 11 10 Energy Gun 3 | . 12 . . . . Ballistic Gun 27 | . 15 28 32 33 29 Peak Build Rating 19 | 7 9 9 17 17 19 Average Rating 13 | 5 8 9 13 17 16 On Entrance 9 | . 7 9 9 17 17 Naked Turns . | . . . . . . Heaviest Build 57 | 15 50 48 54 54 57 Greatest Support 40 | 40 40 20 40 40 40 Greatest Overweight (x) 4 | . 4 4 2 1 1 Average Overweight (x) 1 | . 1 2 1 1 . Largest Inventory Capacity 20 | 8 20 20 20 20 20 Average Capacity 18 | 7 18 20 20 20 18 Most Carried 20 | 5 16 14 20 20 20 Average Carried 15 | 3 11 14 18 20 17 Final Capacity 20 | 8 20 20 20 20 5 Final Carried 20 | 4 14 14 20 20 3 Class Distribution -------------------- 52% | Scavenger-Tank 34% | Mutant 10% | Gunner Dominant Class ---------------- Mutant | -10/Materials Mutant | -10/Mines Scavenger-Tank | -9/Materials Scavenger-Tank | -9/Mines Scavenger-Tank | -9/Exiles Resources | -11 -10 -10 -9 -9 -9 ----------- Run | Yrd Mat Min Mat Min Exi Matter Collected 715 | 282 117 . 111 . 205 Remotely . | . . . . . . Salvage Created 710 | 96 277 . 321 . 16 Parts 47 | 8 21 . 18 . . Haulers Intercepted 1 | . . . 1 . . Recyclers Shooed 2 | . . . 2 . . Parts Field Recycled . | . . . . . . Retrieved Matter . | . . . . . . Parts Self-Destructed . | . . . . . . Prevented . | . . . . . . Kills | -11 -10 -10 -9 -9 -9 ------- Run | Yrd Mat Min Mat Min Exi Combat Hostiles Destroyed 22 | . 12 . 5 . 5 Guns 20 | . 12 . 5 . 3 AOE 2 | . . . . . 2 Classes Destroyed 8 | 2 2 . 3 . 1 Tunneler 2 | 2 . . . . . Hauler 1 | . . . 1 . . Recycler 1 | 1 . . . . . Watcher 1 | . . . 1 . . Swarmer 8 | . 8 . . . . Grunt 6 | . 4 . 2 . . Sentry 3 | . . . 3 . . Assembled 5 | . . . . . 5 Best Kill Streak 6 | 2 6 . 2 . 4 Combat Bots Only 6 | . 6 . 1 . 4 Max Kills in Single Turn 1 | 1 1 . 1 . 1 Gunslinging . | . . . . . . Exploded 1 | . . . . . 1 Melee . | . . . . . . Uniques/NPCs Destroyed . | . . . . . . Combat | -11 -10 -10 -9 -9 -9 -------- Run | Yrd Mat Min Mat Min Exi Hostile Shots Fired 274 | . 83 . 27 . 164 Missed 73 | . 22 . 15 . 36 Hits 201 | . 61 . 12 . 128 Melee 3 | . . . . . 3 Projectile 198 | . 61 . 12 . 125 Critical Strikes 30 | . . . 1 . 29 Damage Taken 2911 | . 561 . 156 . 2194 Core 515 | . 100 . . . 415 Absorbed by Shields . | . . . . . . Core Remaining (%) 80 | 100 . 60 . . . Volleys Fired 121 | 4 36 . 25 . 56 Largest 3 | 2 2 . 3 . 3 Hottest 70 | 70 70 . 60 . 60 Shots Fired 238 | 8 68 . 75 . 87 Gun 234 | 8 68 . 75 . 83 Cannon . | . . . . . . Launcher 4 | . . . . . 4 Special . | . . . . . . Kinetic 206 | 4 48 . 75 . 79 Thermal 24 | 4 20 . . . . Explosive 4 | . . . . . 4 Electromagnetic 4 | . . . . . 4 Robot Hit Streak 28 | 6 7 . 6 . 28 Robot Miss Streak 4 | . 2 . 2 . 4 Penetration Max . | . . . . . . Secondary Targets 2 | . 2 . . . . Max Gunslinging Chain 1 | . 1 . . . . Shots Hit Robots 156 | 6 44 . 44 . 62 Core Hits 67 | 4 18 . 22 . 23 Critical Kills . | . . . . . . Critical Parts Destroyed 1 | . . . 1 . . Critical Strikes 3 | . 2 . 1 . . Burn 2 | . 2 . . . . Destroy 1 | . . . 1 . . Melee Attacks . | . . . . . . Impact . | . . . . . . Slashing . | . . . . . . Piercing . | . . . . . . Sneak Attacks . | . . . . . . Combat Hostiles . | . . . . . . Follow-up Attacks . | . . . . . . Damage Inflicted 1967 | 72 513 . 369 . 1013 Guns 1617 | 72 513 . 369 . 663 Cannons . | . . . . . . Explosions 287 | . . . . . 287 Melee . | . . . . . . Ramming 63 | . . . . . 63 Kinetic 1400 | 34 335 . 369 . 662 Thermal 216 | 38 178 . . . . Explosive 287 | . . . . . 287 Electromagnetic 1 | . . . . . 1 Impact . | . . . . . . Slashing . | . . . . . . Piercing . | . . . . . . Highest Corruption 3 | . . . . . 3 Average Corruption 2 | . . . . . 2 Corruption Purged . | . . . . . . Corruption Blocked . | . . . . . . Overload Shots . | . . . . . . Overflow Damage 27 | . . . . . 27 Projectiles . | . . . . . . Explosions 27 | . . . . . 27 Melee . | . . . . . . Knockbacks . | . . . . . . Impact . | . . . . . . Kinetic . | . . . . . . Secondary . | . . . . . . Self-Inflicted Damage 74 | . . . . . 74 Shots 1 | . . . . . 1 Rammed 20 | . . . . . 20 Targets Rammed 20 | . . . . . 20 Kicked . | . . . . . . Crushed . | . . . . . . Highest Temperature 285 | 18 285 . 42 . 50 Average Temperature 56 | 8 116 . 18 . 13 Received Heat Transfer 249 | . 162 . 87 . . Effects 3 | . 3 . . . . Energy Bleed 1 | . 1 . . . . Interference 2 | . 2 . . . . Siege Activations . | . . . . . . Martial Activations . | . . . . . . Shielding Activations . | . . . . . . Robots Disrupted . | . . . . . . Combat Hostiles . | . . . . . . Robots Corrupted . | . . . . . . Combat Hostiles . | . . . . . . Parts Fried . | . . . . . . Impact Corruptions . | . . . . . . Robots Melted . | . . . . . . Combat Hostiles . | . . . . . . Parts Melted . | . . . . . . Heat Transferred 777 | 111 666 . . . . Parts Sabotaged . | . . . . . . Parts Stolen . | . . . . . . Parts Stripped . | . . . . . . Power Chain Reactions . | . . . . . . Alert | -11 -10 -10 -9 -9 -9 ------- Run | Yrd Mat Min Mat Min Exi Maximum Alert Level 1 | . 1 . . . . Low Security (%) 99 | 100 99 100 100 100 . Level 1 . | . . . . . . Level 2 . | . . . . . . Level 3 . | . . . . . . Level 4 . | . . . . . . Level 5 . | . . . . . . High Security . | . . . . . . Max Security . | . . . . . . Peak Influence 200 | 5 200 73 77 . . Initial 73 | . . 73 20 . . Average 24 | 1 33 66 24 . . Influence Increases 528 | 15 306 . 207 . . Destroy 0b10 Robot/C 340 | . 240 . 100 . . Destroy 0b10 Robot/NC 25 | 15 . . 10 . . Destroy Leader 104 | . 50 . 54 . . Successful Hack 43 | . . . 43 . . Destroy Structure 1 | . 1 . . . . Lose Combat Pursuer 15 | . 15 . . . . Influence Decreases 528 | 15 118 135 260 . . Entered New Map 148 | . . 115 33 . . Time Decay 360 | 15 98 20 227 . . Lost Part 20 | . 20 . . . . Squads Dispatched 5 | . 3 . 2 . . Investigation . | . . . . . . Extermination . | . . . . . . Reinforcement 5 | . 3 . 2 . . Assault . | . . . . . . Garrison . | . . . . . . Intercept . | . . . . . . Searches Triggered . | . . . . . . Construction Impeded . | . . . . . . Haulers Reinforced . | . . . . . . Active Scanning Responses . | . . . . . . Cargo Convoy Interrupts . | . . . . . . Stealth | -11 -10 -10 -9 -9 -9 --------- Run | Yrd Mat Min Mat Min Exi Distress Signals 1 | . 1 . . . . Communications Jammed . | . . . . . . Distress Signals . | . . . . . . Times Spotted 34 | . 17 . 10 . 7 Peak Tracking Total 12 | . 5 . 3 . 12 Tactical Retreats 4 | . 2 . . . 2 Traps | -11 -10 -10 -9 -9 -9 ------- Run | Yrd Mat Min Mat Min Exi Traps Triggered . | . . . . . . Indirectly . | . . . . . . Trap Hack Attempts . | . . . . . . Triggered . | . . . . . . Disarmed . | . . . . . . Reprogrammed . | . . . . . . Reused . | . . . . . . Traps Extracted . | . . . . . . Installed . | . . . . . . Triggered . | . . . . . . Machines | -11 -10 -10 -9 -9 -9 ---------- Run | Yrd Mat Min Mat Min Exi Machines Disabled 3 | . . . . . 3 Max in Single Turn 2 | . . . . . 2 Machines Repaired . | . . . . . . Machines Dismantled . | . . . . . . Machines Sabotaged . | . . . . . . Overloaded Fab Kills . | . . . . . . Hacking | -11 -10 -10 -9 -9 -9 --------- Run | Yrd Mat Min Mat Min Exi Machines Accessed 7 | . 1 . 4 . 2 Terminals 5 | . 1 . 4 . . Fabricators . | . . . . . . Repair Stations . | . . . . . . Recycling Units . | . . . . . . Scanalyzers . | . . . . . . Garrison Access . | . . . . . . Total Hacks 13 | . 1 . 10 . 2 Successful 7 | . . . 5 . 2 Failed 6 | . 1 . 5 . . Catastrophic 2 | . . . 2 . . Database Lockouts . | . . . . . . Manual 10 | . 1 . 8 . 1 Terminals 11 | . 1 . 10 . . Fabricators . | . . . . . . Repair Stations . | . . . . . . Recycling Units . | . . . . . . Scanalyzers . | . . . . . . Garrison Access . | . . . . . . Terminal Hacks 4 | . . . 2 . 2 Record 1 | . . . . . 1 Branch Access Points 1 | . . . 1 . . Zone Layout 1 | . . . 1 . . Proto ID Catalog 1 | . . . . . 1 Fabricator Hacks . | . . . . . . Repair Station Hacks . | . . . . . . Recycling Unit Hacks . | . . . . . . Scanalyzer . | . . . . . . Garrison Access Hacks . | . . . . . . Unauthorized Hacks 3 | . . . 3 . . Terminals 3 | . . . 3 . . Assimilate 1 | . . . 1 . . Botnet 2 | . . . 2 . . Fabricators . | . . . . . . Repair Stations . | . . . . . . Recycling Units . | . . . . . . Scanalyzers . | . . . . . . Garrison Access . | . . . . . . Data Cores Recovered . | . . . . . . Used . | . . . . . . Hacking Detections 3 | . . . 3 . . Full Trace Events . | . . . . . . Feedback Events . | . . . . . . Feedback Blocked . | . . . . . . Robot Schematics Acquired . | . . . . . . Robots Built . | . . . . . . Authchips . | . . . . . . Time . | . . . . . . Total Robot Build Rating . | . . . . . . Part Schematics Acquired . | . . . . . . Parts Built . | . . . . . . Authchips . | . . . . . . Time . | . . . . . . Total Part Build Rating . | . . . . . . Parts Repaired . | . . . . . . Time . | . . . . . . Parts Recycled . | . . . . . . Recycled Matter . | . . . . . . Retrieved Matter . | . . . . . . Retrieved Components . | . . . . . . Parts Scanalyzed . | . . . . . . Part Schematics Acquired . | . . . . . . Parts Damaged . | . . . . . . Bothacking | -11 -10 -10 -9 -9 -9 ------------ Run | Yrd Mat Min Mat Min Exi Used RIF Installer . | . . . . . . Robots Hacked . | . . . . . . Non-combat . | . . . . . . Combat . | . . . . . . Robot Hacks Applied . | . . . . . . Relay Couplers Released . | . . . . . . Fabnet Peak Effective % . | . . . . . . Robots Rewired . | . . . . . . Allies Hacked . | . . . . . . Hacks Repelled . | . . . . . . Allies | -11 -10 -10 -9 -9 -9 -------- Run | Yrd Mat Min Mat Min Exi Total Allies . | . . . . . . Largest Group . | . . . . . . Highest-Rated Group . | . . . . . . Highest-Rated Ally . | . . . . . . Total Orders . | . . . . . . Ally Attacks . | . . . . . . Total Damage . | . . . . . . Kills . | . . . . . . Allies Corrupted . | . . . . . . Allies Melted . | . . . . . . Intel | -11 -10 -10 -9 -9 -9 ------- Run | Yrd Mat Min Mat Min Exi Active Infowar (turns) 1288 | 16 837 44 385 . 6 Seismic 1282 | 16 837 44 385 . . Cloaking 6 | . . . . . 6 Robot Analysis Total . | . . . . . . Derelict Logs Recovered 1 | . . . . 1 . Drone Launches . | . . . . . . Drone Recoveries . | . . . . . . Exploration | -11 -10 -10 -9 -9 -9 ------------- Run | Yrd Mat Min Mat Min Exi Turns Passed 3349 | 115 853 44 754 327 1256 Spaces Moved 1429 | 57 337 26 419 137 453 Core 19 | 10 . . . . 9 Treads 1071 | 47 298 . 145 137 444 Legs . | . . . . . . Wheels 339 | . 39 26 274 . . Hover . | . . . . . . Flight . | . . . . . . Fastest Speed 50 | 50 140 110 110 240 50 Average Speed 199 | 140 209 111 154 240 234 Slowest Speed 240 | 160 240 140 240 240 240 Overloaded Moves . | . . . . . . Propulsion Burnouts . | . . . . . . Robots Hopped . | . . . . . . Potential Cave-ins . | . . . . . . Cave-ins Triggered . | . . . . . . Exploration Rate (%) 36 | 5 60 12 46 29 67 Regions Visited 5 Branch Regions 3 Pre-discovered Areas 1 | . . . . . 1 Known Exits Taken 1 | . . . 1 . . Unknown Exits Taken 4 | 1 1 1 . 1 . Scrap Searched . | . . . . . . Spaces Dug . | . . . . . . Terrain Destroyed 13 | . . . . . 13 Melee . | . . . . . . Projectile . | . . . . . . AOE 13 | . . . . . 13 Terrain Rammed . | . . . . . . Walls Destroyed . | . . . . . . Machines Disabled . | . . . . . . Actions | -11 -10 -10 -9 -9 -9 --------- Run | Yrd Mat Min Mat Min Exi Total 1748 | 84 422 40 487 136 579 Wait 77 | 6 32 14 9 . 16 Move 1424 | 56 336 25 418 136 453 Hop . | . . . . . . Pick Up 46 | 11 13 . 18 . 4 Fast Attach . | . . . . . . Attach 27 | 7 2 . 3 . 15 Detach 2 | . . . . . 2 Swap 11 | . 2 1 4 . 4 Drop 20 | . 1 . 10 . 9 Fire 121 | 4 36 . 25 . 56 Melee . | . . . . . . Ram 20 | . . . . . 20 Kick . | . . . . . . Crush . | . . . . . . Escape Stasis . | . . . . . . Rewire . | . . . . . . Trap . | . . . . . . Miscellaneous . | . . . . . . Route ------- -11/Scrapyard -10/Materials (discovered 3 exits: *Mat / [*Min] / [*Sub]) -10/Mines -9/Materials (discovered 4 exits: *Min x2 / Sto x2) -9/Mines -9/Exiles History --------- Turn | Location | Event 7 | -11/Scrapyard | Discovered new exit (range 16) 116 | -11/Scrapyard | Entered Materials 291 | -10/Materials | Discovered new exit (range 16) 317 | -10/Materials | Build established: Mutant 347 | -10/Materials | Discovered new exit (range 8) 616 | -10/Materials | Derelicts attacked the area 937 | -10/Materials | Discovered new exit (range 12) 969 | -10/Materials | Entered Mines 1007 | -10/Mines | Discovered new exit (range 5) 1013 | -10/Mines | Entered Materials 1013 | -9/Materials | Evolved 2 slots: Utility x1, Weapon x1 1098 | -9/Materials | Discovered new exit (range 7) 1304 | -9/Materials | Identified exit to Mines 1304 | -9/Materials | Identified exit to Storage 1319 | -9/Materials | Build established: Gunner 1675 | -9/Materials | Build established: Scavenger-Tank 1767 | -9/Materials | Entered Mines 1875 | -9/Mines | Learned Materials garrison access intel 2082 | -9/Mines | Deemed a non-threat by the Exiles lab entrance 2082 | -9/Mines | Discovered new exit (range 5) 2094 | -9/Mines | Entered Exiles 2152 | -9/Exiles | Met 8R-AWN 2193 | -9/Exiles | Met EX-HEX 2306 | -9/Exiles | Met EX-DEC 2346 | -9/Exiles | Learned location of Zion (-6) 2841 | -9/Exiles | Met EX-BIN 2875 | -9/Exiles | Aligned with FarCom system 2877 | -9/Exiles | Given EX-Vault access code 2932 | -9/Exiles | Opened EX-Vault 2947 | -9/Exiles | Found Cloak of Protection 2996 | -9/Exiles | Warned to stay clear of 0b10 Research branches 3096 | -9/Exiles | Attacked by the Exiles 3196 | -9/Exiles | Lost 7 parts (1p1n1u4w) 3252 | -9/Exiles | Core integrity fell below 50% 3275 | -9/Exiles | Lost 7 parts (2n2u3w) 3338 | -9/Exiles | Core integrity fell below 20% 3350 | -9/Exiles | Destroyed by 8R-AWN with 8R-AWN's Boregun Last Messages --------------- 03337_ Penetrated by HV Slug. 03337_ HV Slug penetrates Machine. 03337_ Machine disabled. 03338_ Slammed into 8R-AWN. 03340_ Destabilizing: System corrupted (+1). 03341_ Slammed into 8R-AWN. 03341_ Penetrated by HV Slug. 03341_ Shock Rifle destroyed. 03341_ HV Slug penetrates Wall. 03341_ Penetrated by HV Slug. 03341_ HV Slug penetrates Wall. 03342_ Slammed into 8R-AWN. 03345_ Penetrated by HV Slug. 03345_ HV Slug penetrates Wall. 03345_ Penetrated by HV Slug. 03345_ HV Slug penetrates Wall. 03346_ Slammed into 8R-AWN. 03350_ Penetrated by HV Slug. 03350_ HV Slug penetrates Earth. 03350_ Penetrated by HV Slug. Map ----- +----------------------------------------------------+ | ?????????????????????????????????????????????????? | | ?????????????????????????????????????????????????? | | ?????????????????????????????????????????????????? | | ?????????????????????????????????????????????????? | | ?????????????????????????????????????????????????? | | ?????????????????????????????????????????????????? | | ?????????????????????????????????????????????????? | | ?????????????????????????????????????????????????? | | ?????????????????????????????????????????????????? | | ?????????????????????????????????????????????????? | | ?????????????????????????????????????????????????? | | ???????????????? ??????????????#######???????????? | | ???????????????? ######???????#!!! "#???????????? | | ??????????????? #""#??????# "#???????????? | | ???????????????? ??????# "#???????????? | | ???????????????" #????## ""#???????????? | | ???????????????? #####" ""#???????????? | | ????????????????? ##" ""????????????? | | ?????????????????? ;" #?????????????? | | ????????????????????# #?????????????" | | ???????????????????????# ####??????????" | | ????????????????????????## # ##????????? | | ?????????????????######## ##?????????? | | ?????????????????# !!""""" ## ##????? | | ??????????????# #! "### # #???## | | ??????????????# ;! g@!! ;### ####X | | ??????????????####! ###?# | | ????????????# ; ! " #;#???#"# | | ????????# # ########### #???#### | | ????????##????????????????# #??????##" | | ??????????????????????????# #????????##" | | ??????????????????????????# #??????????#" | | ??????????????????????????# #???????????## | | ??????????????????????????# #????????????##" | | ??????????????????????????? #?????????????#""" | | ??????????????????????????? #????????????##" | | ??????????????????????????? ?????????????#"" | | ??????????????????????????? ?????????????#""" | | ??????????????????????????? ?????????????""" | | ??????????????????????????? ?????????????""" | | ??????????????????????????? ?????????????"" | | ?????????????????????????????????????????""" | | ?????????????????????????????????????????"" | | ?????????????????????????????????????????#"" | | ?????????????????????????????????????????#"""" | | ??????????????????????????????????????????# | | ??????????????????????????????????????????#" | | ??????????????????????????????????????????#"""" | | ??????????????????????????????????????????#"" | | ???????????????????????????????????????????? | +----------------------------------------------------+ Best States ------------- Heat Dissipation 28 Energy Generation 12 Energy Capacity 265 Matter Stores 300 Matter Capacity 300 Sight Range 16 Terrain Scan Density 10 Cloak Strength 5 Armor Coverage 150 Resistance: TH 10 Evasion (%) 50 Recoil Reduction 2 Salvage Targeting 2 Item Schematics ----------------- None Robot Schematics ------------------ None Fabricated ------------ Nothing Repaired ---------- Nothing Alien Tech Used ----------------- None Achievements -------------- None Challenges ------------ None Game ------ Seed ParticleBoltShovel Manual? 0 Play Time 00:17:03 Cumulative 235.4 hours Start 2025.08.30 @ 16:45:49 End 2025.08.30 @ 17:05:39 Sessions 3 Manual Loads 0 Difficulty Rogue Special Mode None Game No. 348 Rogue 348 Adventurer 0 Explorer 0 Win Type - Total 4 Types 3/0/1/0/0/0/0/0/0/0 Lore% 81 Gallery% 76 Achievement% 58 Wizard Run 0 Options --------- Layout 1 ASCII 0 Keyboard 0 Movement Mouse Keybinds 0 Fullscreen 1 Font 24/Smallcaps Map View 50x40 Zoom Use 0% Tactical HUD 1 Map Filters NONE Filters NONE Steam 1 RUN: f2307226-82c9-420a-963b-fde299d8e3b8